Cogmind - Beta 15 @@@ ROGUE MODE // 2025.06.04 @ 00:58:02 Player: Kemowoomy Result: Destroyed by KQ-KZX(R) with Subdweller Shrapnel Launcher Performance ------------- Evolutions (0) 0 Regions Visited (2) 400 Robots Destroyed (7) 35 Value Destroyed (250) 250 Prototype IDs (4) 80 Alien Tech Used (0) 0 Bonus (0) 0 TOTAL SCORE: 765 Bonus ------- None Cogmind --------- Core Integrity 0/250 Matter 290/300 Energy 99/100 System Corruption 3% Temperature Cool (0) Movement Core (50) Location -10/Subcaves Parts ------- > --- POWER (1) -------- (None) > --- PROPULSION (2) --- (None) > --- UTILITY (2) ------ (None) > --- WEAPON (2) ------- (None) > --- INVENTORY (5) ---- Subdweller Power Source Aluminum Leg Light Assault Rifle Peak State ------------ > --- POWER ------------ Ion Engine > --- PROPULSION ------- Aluminum Leg Aluminum Leg > --- UTILITY ---------- (None) > --- WEAPON ----------- Light Assault Rifle Light Assault Rifle > --- INVENTORY -------- (None) [Rating: 5] Favorites ----------- Power Ion Engine Engine Ion Engine Propulsion Aluminum Leg Leg Aluminum Leg Utility None Weapon Light Assault Rifle Energy Gun Small Laser Ballistic Gun Light Assault Rifle Ballistic Cannon Light Cannon Build | -11 -10 -10 ------- Run | Yrd Mat Sub Slots Evolved . | . . . Power . | . . . Propulsion . | . . . Utility . | . . . Weapon . | . . . Parts Attached 8 | 5 1 2 Power 1 | 1 . . Engine 1 | 1 . . Core . | . . . Reactor . | . . . Propulsion 3 | 2 . 1 Treads . | . . . Leg 3 | 2 . 1 Wheel . | . . . Hover . | . . . Flight . | . . . Utility . | . . . Device . | . . . Storage . | . . . Processor . | . . . Hackware . | . . . Protection . | . . . Artifact . | . . . Weapon 4 | 2 1 1 Energy Gun 1 | . . 1 Energy Cannon . | . . . Ballistic Gun 2 | 2 . . Ballistic Cannon 1 | . 1 . Launcher . | . . . Special Weapon . | . . . Impact Weapon . | . . . Slashing Weapon . | . . . Piercing Weapon . | . . . Special Melee Weapon . | . . . Unidentified Prototypes . | . . . Parts Lost 6 | . . 6 Power 1 | . . 1 Propulsion 2 | . . 2 Utility . | . . . Weapon 3 | . . 3 Highest Loss Streak 3 | . . 3 To Critical Strikes . | . . . Average Backups 1 | . 1 1 Power . | . . . Propulsion . | . . . Utility . | . . . Weapon 1 | . 1 1 Tool/Special . | . . . Unused Backups 1 | . . 1 Power 1 | . . 1 Propulsion . | . . . Utility . | . . . Weapon . | . . . Tool/Special . | . . . Average Slot Usage (%) 51 | . 71 40 Engine 6 | . 14 2 Leg 21 | . 28 18 Energy Gun 4 | . . 7 Ballistic Gun 12 | . 17 9 Ballistic Cannon 5 | . 10 1 Peak Build Rating 5 | 5 5 5 Average Rating 3 | 3 5 2 On Entrance 3 | . 5 5 Naked Turns 110 | . . 110 Heaviest Build 9 | 7 9 9 Greatest Support 20 | 20 20 20 Greatest Overweight (x) . | . . . Average Overweight (x) . | . . . Largest Inventory Capacity 5 | 5 5 5 Average Capacity 5 | 5 5 5 Most Carried 3 | 3 2 3 Average Carried 1 | . 1 1 Final Capacity 5 | 5 5 5 Final Carried 3 | . 2 3 Class Distribution -------------------- 100% | Mutant Dominant Class ---------------- Mutant | -10/Materials Mutant | -10/Subcaves Resources | -11 -10 -10 ----------- Run | Yrd Mat Sub Matter Collected 380 | 150 180 50 Remotely . | . . . Salvage Created 246 | . 164 82 Parts 6 | . 4 2 Haulers Intercepted . | . . . Recyclers Shooed 1 | . 1 . Parts Field Recycled . | . . . Retrieved Matter . | . . . Parts Self-Destructed 12 | . . 12 Prevented . | . . . Kills | -11 -10 -10 ------- Run | Yrd Mat Sub Combat Hostiles Destroyed 7 | . 5 2 Guns 4 | . 2 2 Cannons 3 | . 3 . Classes Destroyed 2 | . 1 1 Grunt 5 | . 5 . Subdweller 2 | . . 2 Best Kill Streak 3 | . 3 2 Combat Bots Only 3 | . 3 2 Max Kills in Single Turn 1 | . 1 1 Gunslinging . | . . . Exploded . | . . . Melee . | . . . Uniques/NPCs Destroyed . | . . . Combat | -11 -10 -10 -------- Run | Yrd Mat Sub Hostile Shots Fired 86 | . 20 66 Missed 31 | . 8 23 Hits 55 | . 12 43 Projectile 55 | . 12 43 AOE 2 | . . 2 Damage Taken 796 | . 135 661 Core 264 | . . 264 Absorbed by Shields . | . . . Core Remaining (%) 100 | 100 . . Volleys Fired 30 | . 16 14 Largest 2 | . 2 2 Hottest 60 | . 50 60 Shots Fired 60 | . 32 28 Gun 40 | . 16 24 Cannon 20 | . 16 4 Launcher . | . . . Special . | . . . Kinetic 50 | . 32 18 Thermal 10 | . . 10 Explosive . | . . . Electromagnetic . | . . . Robot Hit Streak 14 | . 9 14 Robot Miss Streak 4 | . 2 4 Penetration Max . | . . . Secondary Targets . | . . . Shots Hit Robots 43 | . 23 20 Core Hits 18 | . 10 8 Critical Kills . | . . . Critical Parts Destroyed . | . . . Critical Strikes 3 | . 2 1 Blast 3 | . 2 1 Melee Attacks . | . . . Impact . | . . . Slashing . | . . . Piercing . | . . . Sneak Attacks . | . . . Combat Hostiles . | . . . Follow-up Attacks . | . . . Damage Inflicted 557 | . 339 218 Guns 253 | . 92 161 Cannons 301 | . 244 57 Explosions . | . . . Melee . | . . . Ramming 3 | . 3 . Kinetic 475 | . 336 139 Thermal 79 | . . 79 Explosive . | . . . Electromagnetic . | . . . Impact . | . . . Slashing . | . . . Piercing . | . . . Highest Corruption 3 | . 3 3 Average Corruption 2 | . 1 3 Corruption Purged . | . . . Corruption Blocked . | . . . Effects 7 | . 2 5 Message Errors 3 | . 1 2 Matter Fused 1 | . 1 . Data Loss (minor) 1 | . . 1 Alerts 2 | . . 2 Overload Shots . | . . . Overflow Damage . | . . . Projectiles . | . . . Explosions . | . . . Melee . | . . . Knockbacks 4 | . 3 1 Impact . | . . . Kinetic 4 | . 3 1 Secondary . | . . . Self-Inflicted Damage . | . . . Shots . | . . . Rammed . | . . . Targets Rammed 1 | . 1 . Kicked 1 | . 1 . Crushed . | . . . Highest Temperature 32 | . 32 . Average Temperature 10 | . 10 . Received Heat Transfer 186 | . 72 114 Siege Activations . | . . . Martial Activations . | . . . Shielding Activations . | . . . Robots Disrupted . | . . . Combat Hostiles . | . . . Robots Corrupted . | . . . Combat Hostiles . | . . . Parts Fried . | . . . Impact Corruptions . | . . . Robots Melted . | . . . Combat Hostiles . | . . . Parts Melted 2 | . . 2 Heat Transferred 175 | . . 175 Parts Sabotaged . | . . . Parts Stolen . | . . . Parts Stripped . | . . . Power Chain Reactions . | . . . Alert | -11 -10 -10 ------- Run | Yrd Mat Sub Maximum Alert Level . | . . . Low Security (%) 100 | 100 100 . Level 1 . | . . . Level 2 . | . . . Level 3 . | . . . Level 4 . | . . . Level 5 . | . . . High Security . | . . . Max Security . | . . . Peak Influence 70 | . 70 . Initial . | . . . Average 22 | . 27 . Influence Increases 156 | . 126 30 Destroy 0b10 Robot/C 100 | . 100 . Destroy Leader 20 | . 20 . Successful Hack 6 | . 6 . Lose Combat Pursuer 30 | . . 30 Influence Decreases 156 | . 66 90 Entered New Map 29 | . . 29 Time Decay 96 | . 66 30 Lost Part 31 | . . 31 Squads Dispatched 2 | . 2 . Investigation 1 | . 1 . Extermination . | . . . Reinforcement 1 | . 1 . Assault . | . . . Garrison . | . . . Intercept . | . . . Searches Triggered . | . . . Construction Impeded . | . . . Haulers Reinforced . | . . . Active Scanning Responses . | . . . Cargo Convoy Interrupts . | . . . Stealth | -11 -10 -10 --------- Run | Yrd Mat Sub Distress Signals 1 | . 1 . Communications Jammed . | . . . Distress Signals . | . . . Times Spotted 23 | . 7 16 Peak Tracking Total 6 | . 3 6 Tactical Retreats 2 | . . 2 Traps | -11 -10 -10 ------- Run | Yrd Mat Sub Traps Triggered 2 | . 2 . Indirectly . | . . . Trap Hack Attempts . | . . . Triggered . | . . . Disarmed . | . . . Reprogrammed . | . . . Reused . | . . . Traps Extracted . | . . . Installed . | . . . Triggered . | . . . Machines | -11 -10 -10 ---------- Run | Yrd Mat Sub Machines Disabled . | . . . Max in Single Turn . | . . . Machines Repaired . | . . . Machines Dismantled . | . . . Machines Sabotaged . | . . . Overloaded Fab Kills . | . . . Hacking | -11 -10 -10 --------- Run | Yrd Mat Sub Machines Accessed 1 | . 1 . Terminals 1 | . 1 . Fabricators . | . . . Repair Stations . | . . . Recycling Units . | . . . Scanalyzers . | . . . Garrison Access . | . . . Total Hacks 4 | . 4 . Successful 2 | . 2 . Failed 2 | . 2 . Catastrophic 1 | . 1 . Database Lockouts . | . . . Manual 3 | . 3 . Terminals 4 | . 4 . Fabricators . | . . . Repair Stations . | . . . Recycling Units . | . . . Scanalyzers . | . . . Garrison Access . | . . . Terminal Hacks 2 | . 2 . Prototype ID Bank 2 | . 2 . Fabricator Hacks . | . . . Repair Station Hacks . | . . . Recycling Unit Hacks . | . . . Scanalyzer . | . . . Garrison Access Hacks . | . . . Unauthorized Hacks . | . . . Terminals . | . . . Fabricators . | . . . Repair Stations . | . . . Recycling Units . | . . . Scanalyzers . | . . . Garrison Access . | . . . Data Cores Recovered . | . . . Used . | . . . Hacking Detections 1 | . 1 . Full Trace Events 1 | . 1 . Feedback Events . | . . . Feedback Blocked . | . . . Robot Schematics Acquired . | . . . Robots Built . | . . . Authchips . | . . . Time . | . . . Total Robot Build Rating . | . . . Part Schematics Acquired . | . . . Parts Built . | . . . Authchips . | . . . Time . | . . . Total Part Build Rating . | . . . Parts Repaired . | . . . Time . | . . . Parts Recycled . | . . . Recycled Matter . | . . . Retrieved Matter . | . . . Retrieved Components . | . . . Parts Scanalyzed . | . . . Part Schematics Acquired . | . . . Parts Damaged . | . . . Bothacking | -11 -10 -10 ------------ Run | Yrd Mat Sub Used RIF Installer . | . . . Robots Hacked . | . . . Non-combat . | . . . Combat . | . . . Robot Hacks Applied . | . . . Relay Couplers Released . | . . . Fabnet Peak Effective % . | . . . Robots Rewired . | . . . Allies Hacked . | . . . Hacks Repelled . | . . . Allies | -11 -10 -10 -------- Run | Yrd Mat Sub Total Allies . | . . . Largest Group . | . . . Highest-Rated Group . | . . . Highest-Rated Ally . | . . . Total Orders . | . . . Ally Attacks . | . . . Total Damage . | . . . Kills . | . . . Allies Corrupted . | . . . Allies Melted . | . . . Intel | -11 -10 -10 ------- Run | Yrd Mat Sub Active Infowar (turns) . | . . . Robot Analysis Total . | . . . Derelict Logs Recovered . | . . . Drone Launches . | . . . Drone Recoveries . | . . . Exploration | -11 -10 -10 ------------- Run | Yrd Mat Sub Turns Passed 607 | 46 205 356 Spaces Moved 527 | 39 111 377 Core 231 | 14 . 217 Treads . | . . . Legs 296 | 25 111 160 Wheels . | . . . Hover . | . . . Flight . | . . . Fastest Speed 50 | 50 120 50 Average Speed 89 | 94 120 79 Slowest Speed 120 | 120 120 120 Overloaded Moves . | . . . Propulsion Burnouts . | . . . Robots Hopped . | . . . Potential Cave-ins . | . . . Cave-ins Triggered . | . . . Exploration Rate (%) 20 | 4 23 34 Regions Visited 2 Branch Regions 1 Pre-discovered Areas . | . . . Known Exits Taken . | . . . Unknown Exits Taken 2 | 1 1 . Scrap Searched . | . . . Spaces Dug . | . . . Terrain Destroyed . | . . . Melee . | . . . Projectile . | . . . AOE . | . . . Terrain Rammed . | . . . Walls Destroyed . | . . . Machines Disabled . | . . . Actions | -11 -10 -10 --------- Run | Yrd Mat Sub Total 609 | 48 153 408 Wait 33 | . 23 10 Move 525 | 38 110 377 Hop . | . . . Pick Up 9 | 5 2 2 Fast Attach . | . . . Attach 8 | 5 . 3 Detach 2 | . . 2 Swap 1 | . 1 . Drop . | . . . Fire 30 | . 16 14 Melee . | . . . Ram . | . . . Kick 1 | . 1 . Crush . | . . . Escape Stasis . | . . . Rewire . | . . . Trap . | . . . Miscellaneous . | . . . Route ------- -11/Scrapyard -10/Materials (discovered 2 exits: [*Mat] / [*Sub]) -10/Subcaves (discovered 1 exit: [*Rec]) History --------- Turn | Location | Event 6 | -11/Scrapyard | Discovered new exit (range 16) 47 | -11/Scrapyard | Entered Materials 201 | -10/Materials | Discovered new exit (range 9) 207 | -10/Materials | Discovered new exit (range 7) 252 | -10/Materials | Entered Subcaves 253 | -10/Subcaves | Approached by a straggling Scientist 312 | -10/Subcaves | Build established: Mutant 347 | -10/Subcaves | Lost 3 parts (1p1n1w) 486 | -10/Subcaves | Discovered new exit (range 10) 508 | -10/Subcaves | Core integrity fell below 50% 513 | -10/Subcaves | Shifting Twisted Machinery released Sub. Power Source 518 | -10/Subcaves | Shifting Twisted Machinery released Sub. Optics 527 | -10/Subcaves | Lost 3 parts (1n2w) 607 | -10/Subcaves | Core integrity fell below 20% 608 | -10/Subcaves | Destroyed by KQ-KZX(R) with Subdweller Shrapnel Launcher Last Messages --------------- 00336_ Acquired Aluminum Leg. 00338_ Acquired 3 matter. 00339_ Acquired 7 matter. 00346_ WSW#MZ<65 00451_ System corrupted: Component data lost. 00470_ System corrupted: IFF burst signal emitted. 00486_ EXIT=FOUND 00487_ S-10 Pest springs to life. 00487_ Aluminum Leg destroyed. 00487_ S-10 Pest springs to life. 00495_ Sml. Laser destroyed. 00496_ Lgt. Assault Rifle destroyed. Sub. Power Source falls loose from the Twisted Machinery. 00513_ RM-8IR(R) emerges from the Twisted Machinery. 00515_ System corrupted: IFF burst signal emitted. 00517_ Acquired Sub. Power Source. Sub. Optics falls loose from the Twisted Machinery. 00522_ RM-8IR(R) destroyed. 00522_ S-10 Pest destroyed. 00556_ P|JTCURT3<&9OWXG# S6SV1X4# Map ----- +----------------------------------------------------+ | ?????????????????????????# ## | | ????????????????????????## ######### " | | ?????????????????######## ##??## #???#### "" | | ????????????????## ## ##?## #??????####"" | | ???????????????## ### ### ##?????????? """ | | ???????????????# ## ###???????????? !" | | ???????????????# ## ##??????????????? | | ???????????????## ##????????????????# | | ????????????????## ## ##???????????????? | | ??????????######### #### ##??????????????? | | ?????????## ## ### #??????????????? | | ????????## #?# #??????????????? | | ????????# #### #####?# #??????????????? | | ????????# #??# ##?????# #??????????????? | | ????????# ##??# ##??????# #??#???????????? | | ????????# #???#########??#### ##? #???????????? | | ????????# ########### ### ##### ???????????? | | ????????## ## ## ## #?# ????????????? | | ????????## ?????????????? | | ????????# ??????????????? | | ????????# ????????????????? | | ????????# ? ?????????????????? | | ????????# " ### #??????????????????? | | ????????# # """ R #;;;####????????????????? | | ???????## " #; ;; #????????????????? | | ???????# #### @ ; #????????????????? | | ??????### #??# ; #????????????????? | | ??????# # #??# ##; ; #????????????????? | | ??????# ##??## ## ###;; ; #####????????????? | | ??????##"" ###### ###?##; ;## #????????????? | | ???????##" # ## #???## ## #????????????? | | ????????# " " ##?### #????????????? | | ????????## " "#??# ##????????????? | | ?????????# ##"##??# #?????????????? | | ?????????# ######???#### ### #?????????????? | | ?????????# ##???????????#####?####?????????????? | | ?????????# ##???????????????????????????????????? | | ?????????# #????????????????????????????????????? | | ?????????# ##???????????????????????????????????? | | ???????### #???????????????????????????????????? | | ???????# """ #???????????????????????????????????? | | ???????# #???????????????????????????????????? | | ???????### ##???????????????????????????????????? | | ?????????# ##????????????????????????????????????? | | ?????????# #????????????????????????????????????? | | ?????????##"#????????????????????????????????????? | | ??????????# #????????????????????????????????????? | | ??????????# #????????????????????????????????????? | | ????????### #????????????????????????????????????? | | ????????# # #????????????????????????????????????? | +----------------------------------------------------+ Best States ------------- Heat Dissipation 25 Energy Generation 10 Energy Capacity 250 Matter Stores 300 Matter Capacity 300 Sight Range 16 Terrain Scan Density 10 Evasion (%) 55 Item Schematics ----------------- None Robot Schematics ------------------ None Fabricated ------------ Nothing Repaired ---------- Nothing Alien Tech Used ----------------- None Achievements -------------- None Challenges ------------ None Game ------ Seed ZioniteGravityRipteeth Manual? 0 Play Time 00:08:40 Cumulative 29.2 hours Start 2025.06.04 @ 00:52:01 End 2025.06.04 @ 00:58:02 Sessions 1 Manual Loads 0 Difficulty Rogue Special Mode None Game No. 46 Rogue 44 Adventurer 2 Explorer 0 Win Type - Total 0 Types 0/0/0/0/0/0/0/0/0/0 Lore% 13 Gallery% 23 Achievement% 22 Wizard Run 0 Options --------- Layout 0 ASCII 1 Keyboard 1 Movement Numpad Keybinds 0 Fullscreen 2 Font 18/Terminus Map View 112x50 Zoom Use 0% Tactical HUD 1 Map Filters NONE Filters NONE Steam 1 RUN: cfc8077a-5e30-436c-a2f9-5f0cf7dd86a2